fUSD/lending_fUSD_20250325
["ID","MTS","AMOUNT","RATE_DAILY","PERIOD"]
[356678150,1742941200399,-4999850.0,0.00057534,120]
[356678152,1742941203484,-500.0,0.00047021,120]
[356678153,1742941203542,-3541882.15397272,0.00057534,120]
[356678154,1742941203584,-150.0,0.00057534,120]
[356678155,1742941204949,500.0,0.00047021,120]
[356678156,1742941205002,500.0,0.00047021,120]
[356678157,1742941206434,151.0,0.00050578,120]
[356678158,1742941207235,535.42147109,0.00047021,120]
[356678159,1742941207568,226.66717935,0.00052717,30]
[356678160,1742941207644,500.0,0.00047021,120]
[356678161,1742941209937,554.77773683,0.00047021,120]
[356678163,1742941210858,88888.0,0.00047297,120]
[356678165,1742941212528,226.66717935,0.00057435,30]
[356678167,1742941214221,504.14218884,0.00047021,120]
[356678178,1742941508541,10217.0,0.00012,2]
[356678179,1742941508576,282272.79789455,0.00012,2]
[356678183,1742941582794,-225.39008775,0.0002361,7]
[356678185,1742941622455,-178.67,0.0002361,7]
[356678186,1742941625140,-170.02,0.000125,3]
[356679592,1742941678723,58677.22823909,0.0001,2]
[356680964,1742941737870,-185.38286,0.000125,3]
[356680965,1742941737895,-289.11494,0.000151,2]
[356680967,1742941752872,-210.885059,0.000151,2]
[356680968,1742941752895,-89.84024823,0.0001901,7]
[356680969,1742941755369,-252.8338836,0.0001901,7]
[356680970,1742941759180,-471.10690917,0.00023609,10]
[356680972,1742941781223,-376.17062974,0.000199,2]
[356680973,1742941803187,178.99,0.00025,60]
[356680976,1742941830213,-1297.0746,0.000199,2]
[356681001,1742941831664,-245.23332257,0.0002,7]
[356681002,1742941831674,-121.61168743,0.0002,7]
[356681003,1742941831685,-641.86987922,0.0002,7]
[356681004,1742941831695,-428.86707585,0.0002,7]
[356681005,1742941831707,-817.45027807,0.0002,7]
[356681006,1742941831719,-1554.80251097,0.0002,7]
[356681007,1742941831729,-505.30197558,0.0002,7]
[356681008,1742941831738,-802.0743281,0.0002,7]
[356681009,1742941831749,-211.02920579,0.000219,3]
[356681010,1742941831760,-760.02504023,0.00022,7]
[356681011,1742941831771,-466.49633,0.00023455,2]
[356681012,1742941831782,-5393.06588397,0.00023573,2]
[356681013,1742941831792,-346.12801022,0.00023573,2]
[356681014,1742941831802,-163.55656347,0.00023573,2]
[356681015,1742941831820,-833.3107227,0.00023609,10]
[356681016,1742941831831,-1100.93600369,0.00023609,10]
[356681017,1742941831841,-1304.41763188,0.00023609,10]
[356681018,1742941831851,-450.0,0.00023609,2]
[356681019,1742941831862,-5376.86660272,0.0002361,7]
[356681020,1742941831875,-823.89692,0.0002361,7]
[356681021,1742941831888,-876.27723803,0.0002361,7]
[356681022,1742941831900,-495.69928511,0.0002361,7]
[356681023,1742941831912,-10268.78163509,0.0002361,7]
[356681024,1742941831924,-606.20981231,0.0002361,7]
[356681025,1742941831944,-5458.00703513,0.0002361,7]
[356681026,1742941831956,-1470.0270777,0.0002361,7]
[356681027,1742941831968,-946.24,0.0002361,7]
[356681028,1742941831990,-187203.89501183,0.0002361,7]
[356681029,1742941832002,-387.11776415,0.0002361,7]
[356681030,1742941832016,-2701.01323234,0.0002361,7]
[356681031,1742941832028,-309.89608168,0.0002361,7]
[356681032,1742941832040,-774.11146098,0.0002361,7]
[356681033,1742941832052,-500.0,0.0002361,7]
[356681136,1742941837574,-2500.0,0.0002361,7]
[356681138,1742941837656,-85886.88160797,0.0002361,7]
[356681139,1742941837669,-3831.10195293,0.0002361,7]
[356681140,1742941837683,-166518.94437003,0.0002361,7]
[356681141,1742941837764,-4231.9277,0.0002361,7]
[356681142,1742941837775,-531.0752907,0.0002361,7]
[356681143,1742941837786,-364.04259866,0.0002361,7]
[356681246,1742941839107,1096.65817951,0.00032268,120]
[356681249,1742941839921,-263.07931351,0.0002361,7]
[356681250,1742941840528,-0.00357976,0.0002361,7]
[356681321,1742941844208,-1755.754,0.0002361,7]
[356681322,1742941844244,-260.64482226,0.0002361,7]
[356681327,1742941846562,-1752.68,0.0002361,7]
[356681328,1742941846792,-301.3760506,0.0002361,7]
[356681329,1742941848068,5526.0,0.00032268,120]
[356682011,1742943031850,-166.66666666,0.00023499,2]
[356682012,1742943031859,-477.75519925,0.00023509,2]
[356682013,1742943031869,-150.0,0.00023591,2]
[356682014,1742943031878,-300.0,0.00023599,2]
[356682015,1742943031887,-824.69125901,0.000236,2]
[356682016,1742943031899,-11651.54697494,0.000236,2]
[356682017,1742943031908,-150.0,0.00023609,2]
[356682018,1742943031917,-7871.94371505,0.0002361,7]
[356682019,1742943031933,-5574.96988857,0.0002361,7]
[356682020,1742943031971,-406.62984175,0.0002361,7]
[356682021,1742943031995,-859.23838,0.0002361,7]
[356682031,1742943037797,-428.94653568,0.0002361,7]
[356682032,1742943037813,-70410.22190149,0.0002361,7]
[356682033,1742943037827,-264.96815695,0.000239,3]
[356682034,1742943037838,-300.72530723,0.0002425,2]
[356682035,1742943037849,-250.0,0.00025,2]
[356682036,1742943037862,-15000.0,0.000259,7]
[356682037,1742943037874,-299.99,0.000259,12]
[356682038,1742943037885,-817.15,0.000259,2]
[356682039,1742943037896,-9389.24,0.000259,2]
[356682040,1742943037909,-171.73,0.000259,2]
[356682041,1742943037921,-999.99,0.000259,2]
[356682042,1742943037932,-150.99,0.000259,2]
[356682043,1742943037944,-457.25971843,0.000259,2]
[356682044,1742943037956,-159.79,0.000259,2]
[356682045,1742943037968,-150.0,0.0002593,2]
[356682046,1742943037979,-199.452,0.0002645,13]
[356682047,1742943037991,-1074.173,0.0002645,13]
[356682048,1742943038003,-152.2,0.00026849,2]
[356682049,1742943038015,-164.43,0.00026849,2]
[356682050,1742943038027,-151.12,0.00026849,2]
[356682051,1742943038039,-5313.68800432,0.00027,7]
[356682052,1742943038051,-190.34133424,0.00029777,30]
[356682053,1742943038063,-190.34133424,0.00029777,30]
[356682054,1742943038074,-190.34133424,0.00029777,30]
[356682055,1742943038086,-190.34133424,0.00029777,30]
[356682056,1742943038098,-1234.86367984,0.00030584,5]
[356682057,1742943038111,-1234.86367984,0.00030584,5]
[356682058,1742943038123,-200.0,0.00032107,2]
[356682059,1742943038136,-1901.30795,0.00032268,50]
[356682060,1742943038149,-511.02,0.000323,2]
[356682061,1742943038161,-511.02,0.00032333,2]
[356682062,1742943038172,-511.02,0.00032367,2]
[356682063,1742943038185,-511.02,0.000324,2]
[356682064,1742943038199,-172.918,0.000324,2]
[356682065,1742943038211,-172.918,0.000324,2]
[356682066,1742943038224,-172.918,0.000324,2]
[356682067,1742943038237,-907.15,0.0003408,2]
[356682068,1742943038249,-150.0,0.00034548,10]
[356682069,1742943038261,-195.13,0.00035186,2]
[356682070,1742943038273,-1852.42,0.00035383,2]
[356682071,1742943038284,-250.0,0.00035473,2]
[356682072,1742943038296,-772.25,0.00035551,2]
[356682073,1742943038308,-1272.71,0.00035697,2]
[356682074,1742943038320,-150.0,0.00035702,7]
[356682075,1742943038331,-151.0,0.00036025,2]
[356682076,1742943038343,-2799.43448662,0.00036046,2]
[356682077,1742943038357,-6331.89695659,0.00036047,2]
[356682078,1742943038373,-23900.0,0.00036047,2]
[356682079,1742943038385,-150.23,0.00036147,2]
[356682080,1742943038397,-907.15,0.00036344,2]
[356682081,1742943038409,-1500.0,0.00036383,120]
[356682082,1742943038420,-188.26,0.00036393,2]
[356682083,1742943038432,-168.48,0.00036483,2]
[356682084,1742943038446,-213.21,0.00036526,2]
[356682085,1742943038459,-624.85,0.00036678,2]
[356682086,1742943038472,-235.0,0.00036683,2]
[356682087,1742943038482,-150.86,0.00036793,120]
[356682088,1742943038491,-299.85,0.00036829,120]
[356682089,1742943038500,-1214.04,0.00036851,2]
[356682090,1742943038510,-2948.13,0.00036858,2]
[356682091,1742943038519,-183.0,0.00036911,2]
[356682092,1742943038528,-298.86,0.00036921,2]
[356682093,1742943038700,-2000.0,0.00036952,120]
[356682094,1742943038723,-298.86,0.00036999,2]
[356682095,1742943038736,-298.86,0.00037077,2]
[356682096,1742943038745,-298.86,0.00037155,2]
[356682097,1742943038755,-1000.0,0.00037218,2]
[356682098,1742943038764,-298.86,0.00037232,2]
[356682099,1742943038773,-1901.30796,0.00037268,50]
[356682100,1742943038782,-153.02,0.000373,31]
[356682101,1742943038791,-153.02,0.000373,31]
[356682102,1742943038801,-153.02,0.000373,31]
[356682103,1742943038810,-153.02,0.000373,31]
[356682104,1742943038819,-153.02,0.000373,31]
[356682105,1742943038828,-153.02,0.000373,31]
[356682106,1742943038837,-153.02,0.000373,31]
[356682107,1742943038846,-298.86,0.0003731,2]
[356682108,1742943038855,-6331.89695655,0.00037364,2]
[356682109,1742943038865,-298.86,0.00037388,2]
[356682110,1742943038874,-338.73,0.0003739,2]
[356682111,1742943038884,-150.23,0.00037458,2]
[356682112,1742943038893,-298.86,0.00037466,2]
[356682113,1742943038903,-298.86,0.00037543,2]
[356682114,1742943038912,-298.86,0.00037621,2]
[356682115,1742943038921,-298.86,0.00037699,2]
[356682116,1742943038931,-788.36,0.00037762,2]
[356682117,1742943038941,-443.4,0.00037762,2]
[356682118,1742943038950,-781.6,0.00037762,2]
[356682119,1742943038958,-443.4,0.00037762,2]
[356682120,1742943038968,-443.4,0.00037762,2]
[356682121,1742943038976,-781.6,0.00037762,2]
[356682122,1742943038987,-440.7,0.00037762,2]
[356682123,1742943038996,-781.6,0.00037762,2]
[356682124,1742943039006,-781.6,0.00037762,2]
[356682125,1742943039015,-298.86,0.00037776,2]
[356682126,1742943039024,-298.86,0.00037854,2]
[356682127,1742943039033,-995.68,0.00037899,2]
[356682128,1742943039042,-995.68,0.00037899,2]
[356682129,1742943039052,-157.86,0.00037899,2]
[356682130,1742943039061,-346.39,0.00037899,2]
[356682131,1742943039070,-346.39,0.00037899,2]
[356682132,1742943039079,-343.72,0.00037899,2]
[356682133,1742943039089,-298.86,0.00037932,2]
[356682134,1742943039098,-231.05,0.00037976,2]
[356682135,1742943039107,-298.86,0.0003801,2]
[356682136,1742943039117,-8668.81,0.00038053,2]
[356682137,1742943039126,-298.86,0.00038087,2]
[356682138,1742943039135,-298.86,0.00038165,2]
[356682139,1742943039145,-298.86,0.00038243,2]
[356682140,1742943039155,-298.86,0.00038321,2]
[356682141,1742943039164,-954.04,0.00038352,2]
[356682142,1742943039173,-213.21,0.00038353,2]
[356682143,1742943039182,-298.86,0.00038398,2]
[356682144,1742943039191,-907.15,0.00038608,2]
[356682145,1742943039200,-6331.89695655,0.00038681,2]
[356682146,1742943039209,-156.587,0.00038764,2]
[356682147,1742943039218,-150.23,0.00038768,2]
[356682148,1742943039227,-152.2,0.00039087,2]
[356682149,1742943039236,-164.43,0.00039087,2]
[356682150,1742943039245,-151.12,0.00039087,2]
[356682151,1742943039255,-158.4344248,0.00039349,30]
[356682152,1742943039264,-158.4344248,0.00039349,30]
[356682153,1742943039274,-158.4344248,0.00039349,30]
[356682154,1742943039285,-6331.89695655,0.00039998,15]
[356682155,1742943039294,-150.23,0.00040079,2]
[356682156,1742943039304,-213.21,0.00040179,2]
[356682157,1742943039313,-153.02,0.000404,31]
[356682158,1742943039322,-153.02,0.000404,31]
[356682159,1742943039331,-153.02,0.000404,31]
[356682160,1742943039341,-153.02,0.000404,31]
[356682161,1742943039352,-153.02,0.000404,31]
[356682162,1742943039362,-153.02,0.000404,31]
[356682163,1742943039373,-153.02,0.000404,31]
[356682164,1742943039382,-153.02,0.000404,31]
[356682165,1742943039391,-153.02,0.000404,31]
[356682166,1742943039402,-153.02,0.000404,31]
[356682167,1742943039411,-153.02,0.000404,31]
[356682168,1742943039420,-153.02,0.000404,31]
[356682169,1742943039430,-153.02,0.000404,31]
[356682170,1742943039439,-153.02,0.000404,31]
[356682171,1742943039450,-907.15,0.00040871,2]
[356682172,1742943039460,-324.78922,0.00041096,31]
[356682173,1742943039469,-216.0,0.000412,5]
[356682174,1742943039479,-6331.89695655,0.00041315,15]
[356682175,1742943039488,-150.23,0.00041389,2]
[356682176,1742943039497,-299.85,0.00041432,120]
[356682177,1742943039507,-162.380719,0.00041503,2]
[356682178,1742943039520,-225.0,0.0004183,2]
[356682179,1742943039531,-1000.0,0.0004187,2]
[356682180,1742943039540,-213.21,0.00042005,2]
[356682181,1742943039550,-1901.30796,0.00042268,50]
[356682182,1742943039559,-1000.0,0.0004242,30]
[356682183,1742943039569,-152.0,0.00042572,3]
[356682184,1742943039579,-6331.89695655,0.00042632,15]
[356682185,1742943039589,-150.23,0.000427,2]
[356682186,1742943039599,-169.90017243,0.00042732,30]
[356682187,1742943039610,-169.90017243,0.00042732,30]
[356682188,1742943039620,-300.0,0.000428,30]
[356682189,1742943039630,-159.66802009,0.00042817,5]
[356682190,1742943039639,-225.0,0.0004286,2]
[356682191,1742943039649,-300.0,0.000429,30]
[356682192,1742943039660,-2499.99999901,0.00043,120]
[356682193,1742943039670,-907.15,0.00043135,2]
[356682194,1742943039679,-153.02,0.000435,36]
[356682195,1742943039688,-153.02,0.000435,36]
[356682196,1742943039698,-153.02,0.000435,36]
[356682197,1742943039707,-153.02,0.000435,36]
[356682198,1742943039717,-153.02,0.000435,36]
[356682199,1742943039727,-153.02,0.000435,36]
[356682200,1742943039736,-153.02,0.000435,36]
[356682201,1742943039745,-153.02,0.000435,36]
[356682202,1742943039755,-153.02,0.000435,36]
[356682203,1742943039766,-153.02,0.000435,36]
[356682204,1742943039776,-153.02,0.000435,36]
[356682206,1742943039786,-153.02,0.000435,36]
[356682207,1742943039796,-153.02,0.000435,36]
[356682208,1742943039805,-153.02,0.000435,36]
[356682209,1742943039816,-294.99477275,0.00043516,2]
[356682210,1742943039825,-4168.5257,0.00043599,30]
[356682211,1742943039835,-336.68534672,0.00043729,30]
[356682212,1742943039844,-213.21,0.00043831,2]
[356682213,1742943039853,-500.0,0.00043836,31]
[356682214,1742943039863,-500.0,0.00043836,31]
[356682215,1742943039872,-500.0,0.00043836,31]
[356682216,1742943039882,-500.0,0.00043836,31]
[356682217,1742943039892,-500.0,0.00043836,31]
[356682218,1742943039902,-500.0,0.00043836,31]
[356682219,1742943039911,-500.0,0.00043836,31]
[356682220,1742943039921,-500.0,0.00043836,31]
[356682221,1742943039931,-500.0,0.00043836,31]
[356682222,1742943039941,-500.0,0.00043836,31]
[356682223,1742943039950,-500.0,0.00043836,31]
[356682224,1742943039959,-500.0,0.00043836,31]
[356682225,1742943039968,-500.0,0.00043836,31]
[356682226,1742943039978,-500.0,0.00043836,31]
[356682227,1742943039988,-500.0,0.00043836,31]
[356682228,1742943039998,-500.0,0.00043836,31]
[356682229,1742943040007,-500.0,0.00043836,31]
[356682230,1742943040017,-500.0,0.00043836,31]
[356682231,1742943040026,-500.0,0.00043836,31]
[356682232,1742943040036,-500.0,0.00043836,31]
[356682233,1742943040046,-500.0,0.00043836,31]
[356682234,1742943040056,-500.0,0.00043836,31]
[356682235,1742943040066,-500.0,0.00043836,31]
[356682236,1742943040076,-500.0,0.00043836,31]
[356682237,1742943040086,-500.0,0.00043836,31]
[356682238,1742943040095,-500.0,0.00043836,31]
[356682239,1742943040105,-500.0,0.00043836,31]
[356682240,1742943040114,-514.43786579,0.00043836,31]
[356682241,1742943040124,-500.0,0.00043836,31]
[356682242,1742943040133,-500.0,0.00043836,31]
[356682243,1742943040143,-500.0,0.00043836,31]
[356682244,1742943040152,-500.0,0.00043836,31]
[356682245,1742943040161,-500.0,0.00043836,31]
[356682246,1742943040171,-500.0,0.00043836,31]
[356682247,1742943040180,-500.0,0.00043836,120]
[356682248,1742943040190,-500.0,0.00043836,120]
[356682249,1742943040199,-442.94968399,0.00043836,120]
[356682250,1742943040208,-500.0,0.00043836,120]
[356682251,1742943040218,-500.0,0.00043836,120]
[356682252,1742943040227,-500.0,0.00043836,120]
[356682253,1742943040236,-500.0,0.00043836,120]
[356682254,1742943040245,-500.0,0.00043836,120]
[356682255,1742943040255,-500.0,0.00043836,120]
[356682256,1742943040264,-500.0,0.00043836,120]
[356682257,1742943040273,-500.0,0.00043836,120]
[356682258,1742943040282,-500.0,0.00043836,120]
[356682259,1742943040292,-200.0,0.00043836,120]
[356682260,1742943040301,-500.0,0.00043836,120]
[356682261,1742943040310,-163.55656347,0.0004391,28]
[356682262,1742943040319,-6331.89695655,0.00043949,15]
[356682263,1742943040328,-17845.11044008,0.00044,7]
[356682264,1742943040337,-150.23,0.0004401,2]
[356682265,1742943040347,-216.5010985,0.00044242,2]
[356682266,1742943040357,-10138.5052578,0.00044381,15]
[356682267,1742943040366,-22106.7166147,0.00044471,3]
[356682268,1742943040375,-1647.0,0.00044481,7]
[356682269,1742943040385,-5000.0,0.00044481,17]
[356682270,1742943040394,-5000.0,0.00044481,18]
[356682271,1742943040405,-5000.0,0.00044481,15]
[356682272,1742943040414,-5000.0,0.00044481,15]
[356682273,1742943040423,-163.55656347,0.00044575,28]
[356682274,1742943040433,-500.0,0.0004462,10]
[356682275,1742943040443,-10138.50525774,0.00044772,15]
[356682276,1742943040453,-2737.11259449,0.00044955,2]
[356682277,1742943040462,-166.62222222,0.00045,120]
[356682278,1742943040471,-890.77595758,0.00045,2]
[356682279,1742943040481,-818.13799285,0.00045,10]
[356682280,1742943040490,-3213.5673558,0.00045,120]
[356682281,1742943040499,-400.0,0.00045,2]
[356682282,1742943040508,-471.85182666,0.00045,90]
[356682283,1742943040518,-401.18205277,0.00045,120]
[356682284,1742943040527,-151.0,0.00045,120]
[356682285,1742943040537,-151.0,0.00045,90]
[356682286,1742943040546,-152.0,0.00045003,4]
[356682287,1742943040556,-178.32,0.00045007,120]
[356682288,1742943040565,-22106.7166147,0.00045122,3]
[356682289,1742943040575,-1477.772,0.00045142,2]
[356682290,1742943040584,-572.0,0.00045142,2]
[356682291,1742943040594,-788.0,0.00045142,2]
[356682292,1742943040603,-1273.0,0.00045142,2]
[356682293,1742943040612,-1430.0,0.00045142,2]
[356682294,1742943040621,-4085.0,0.00045142,2]
[356682295,1742943040630,-907.0,0.00045142,2]
[356682296,1742943040640,-328.554,0.00045142,2]
[356682297,1742943040649,-272.692,0.00045142,2]
[356682298,1742943040658,-3941.0,0.00045142,2]
[356682299,1742943040668,-151.0,0.00045142,2]
[356682300,1742943040677,-1014.0,0.00045142,2]
[356682301,1742943040686,-10138.50525774,0.00045163,15]
[356682302,1742943040696,-163.55656347,0.0004524,28]
[356682303,1742943040705,-6331.89695655,0.00045266,15]
[356682304,1742943040714,-150.23,0.0004532,2]
[356682305,1742943040723,-907.15,0.00045399,2]
[356682306,1742943040733,-300.0,0.000455,7]
[356682307,1742943040743,-300.0,0.000455,7]
[356682308,1742943040752,-342.74338087,0.000455,7]
[356682309,1742943040761,-165.23,0.0004554,2]
[356682310,1742943040771,-429.72084316,0.00045585,2]
[356682311,1742943040780,-151.0,0.00045685,90]
[356682312,1742943040788,-1909.81821324,0.000457,90]
[356682313,1742943040798,-22106.7166147,0.0004589,3]
[356682314,1742943040807,-900.0,0.000459,16]
[356682315,1742943040816,-163.55656347,0.00045905,28]
[356682316,1742943040825,-224.0,0.0004594,30]
[356682317,1742943040834,-225.0,0.0004594,30]
[356682318,1742943040844,-700.0,0.00046,120]
[356682319,1742943040853,-22106.7166147,0.00046009,3]
[356682320,1742943040862,-10511.72438809,0.00046017,2]
[356682321,1742943040871,-200.0,0.0004602,2]
[356682322,1742943040880,-200.0,0.0004602,2]
[356682323,1742943040890,-200.0,0.0004602,2]
[356682324,1742943040899,-200.0,0.0004602,2]
[356682325,1742943040909,-200.0,0.0004602,2]
[356682326,1742943040918,-200.0,0.0004602,2]
[356682327,1742943040927,-200.0,0.0004602,2]
[356682328,1742943040936,-331.0,0.0004602,2]
[356682329,1742943040946,-153.0,0.00046027,120]
[356682330,1742943040956,-153.0,0.00046027,120]
[356682331,1742943040965,-153.0,0.00046027,120]
[356682332,1742943040974,-153.0,0.00046027,120]
[356682333,1742943040984,-153.0,0.00046027,120]
[356682334,1742943040994,-153.0,0.00046027,120]
[356682335,1742943041003,-153.0,0.00046027,120]
[356682336,1742943041012,-153.0,0.00046027,120]
[356682337,1742943041022,-153.0,0.00046027,120]
[356682338,1742943041032,-153.0,0.00046027,120]
[356682339,1742943041041,-153.0,0.00046027,120]
[356682340,1742943041050,-153.0,0.00046027,120]
[356682341,1742943041059,-153.0,0.00046027,120]
[356682342,1742943041068,-153.0,0.00046027,120]
[356682343,1742943041077,-153.0,0.00046027,120]
[356682344,1742943041086,-153.0,0.00046027,120]
[356682345,1742943041095,-153.0,0.00046027,120]
[356682346,1742943041104,-153.0,0.00046027,120]
[356682347,1742943041113,-129.59983851,0.00046027,120]
[356682348,1742943041380,-23.40016149,0.00046027,120]
[356682349,1742943041391,-153.0,0.00046027,120]
[356682350,1742943041402,-153.0,0.00046027,120]
[356682351,1742943041412,-153.0,0.00046027,120]
[356682352,1742943041424,-153.0,0.00046027,120]
[356682353,1742943041435,-153.0,0.00046027,120]
[356682354,1742943041444,-153.0,0.00046027,120]
[356682355,1742943041454,-153.0,0.00046027,120]
[356682356,1742943041465,-25.52190474,0.00046027,120]
[356682357,1742943041480,-127.47809526,0.00046027,120]
[356682358,1742943041490,-145.55096832,0.00046027,120]
[356682359,1742943041501,-7.44903168,0.00046027,120]
[356682360,1742943041510,-153.0,0.00046027,120]
[356682361,1742943041518,-153.0,0.00046027,120]
[356682362,1742943041528,-153.0,0.00046027,120]
[356682363,1742943041537,-153.0,0.00046027,120]
[356682364,1742943041546,-153.0,0.00046027,120]
[356682365,1742943041555,-153.0,0.00046027,120]
[356682366,1742943041564,-153.0,0.00046027,120]
[356682367,1742943041573,-30.75096832,0.00046027,120]
[356682368,1742943041585,-122.24903168,0.00046027,120]
[356682369,1742943041594,-153.0,0.00046027,120]
[356682370,1742943041603,-153.0,0.00046027,120]
[356682371,1742943041612,-153.0,0.00046027,120]
[356682372,1742943041622,-153.0,0.00046027,120]
[356682373,1742943041631,-153.0,0.00046027,120]
[356682374,1742943041640,-153.0,0.00046027,120]
[356682375,1742943041650,-153.0,0.00046027,120]
[356682376,1742943041659,-153.0,0.00046027,120]
[356682377,1742943041672,-153.0,0.00046027,120]
[356682378,1742943041682,-299.85,0.00046036,120]
[356682379,1742943041692,-169.56,0.00046219,2]
[356682380,1742943041702,-429.72084315,0.0004625,2]
[356682381,1742943041712,-1205.88107166,0.000463,120]
[356682382,1742943041721,-2500.0,0.00046301,120]
[356682383,1742943041731,-815.79902403,0.0004636,61]
[356682384,1742943041740,-10630.35738948,0.0004636,41]
[356682385,1742943041752,-658.81543012,0.0004636,41]
[356682386,1742943041869,-49895.53168645,0.0004636,41]
[356682387,1742943041878,-11294.12106355,0.0004636,3]
[356682388,1742943041889,-3069.2290785,0.0004636,3]
[356682389,1742943041900,-1493.64070285,0.0004636,3]
[356682414,1742943044298,-4244.18478496,0.00045554,15]
[356682415,1742943044309,-504.850025,0.00045554,15]
[356682416,1742943044332,-5389.47044778,0.00045554,15]
[356682417,1742943044341,-6249.7257698,0.0004636,3]
[356682418,1742943044351,-876.4260603,0.00046365,23]
[356682419,1742943044362,-150.86,0.0004637,2]
[356682420,1742943044372,-22106.7166147,0.0004637,3]
[356682421,1742943044381,-57519.53451276,0.0004638,2]
[356682422,1742943044391,-768.620781,0.0004638,23]
[356682423,1742943044400,-260.44587888,0.00046387,2]
[356682424,1742943044410,-176.032204,0.00046398,120]
[356682425,1742943044419,-876.4260603,0.00046405,24]
[356682426,1742943044428,-44213.4332295,0.0004641,3]
[356682427,1742943044439,-31036.8702386,0.0004641,3]
[356682428,1742943044449,-593.4096202,0.0004642,4]
[356682429,1742943044458,-876.4260603,0.00046445,24]
[356682430,1742943044468,-150.86,0.00046445,2]
[356682431,1742943044478,-165.23,0.00046451,2]
[356682432,1742943044487,-22106.7166147,0.00046455,3]
[356682433,1742943044496,-31036.8702386,0.00046455,3]
[356682434,1742943044505,-150.86,0.00046455,2]
[356682435,1742943044515,-66320.1498443,0.00046465,3]
[356682436,1742943044524,-46555.305358,0.00046465,3]
[356682437,1742943044533,-5000.0,0.00046475,120]
[356682438,1742943044543,-88888.0,0.00046475,120]
[356682439,1742943044552,-15518.4351193,0.0004648,3]
[356682440,1742943044561,-22106.7166147,0.0004649,3]
[356682441,1742943044570,-15518.4351193,0.0004649,3]
[356682442,1742943044580,-150.86,0.0004649,2]
[356682443,1742943044589,-177.032204,0.00046498,120]
[356682444,1742943044598,-1800.0,0.000465,2]
[356682445,1742943044607,-5150.0,0.000465,33]
[356682446,1742943044617,-614.763,0.000465,23]
[356682447,1742943044626,-5150.0,0.000465,16]
[356682448,1742943044636,-157.95683,0.000465,120]
[356682449,1742943044645,-150.0,0.000465,120]
[356682450,1742943044654,-5100.0,0.000465,13]
[356682451,1742943044664,-5100.0,0.000465,14]
[356682452,1742943044673,-5100.0,0.000465,15]
[356682453,1742943044682,-22106.7166147,0.00046508,3]
[356682454,1742943044692,-15518.4351193,0.00046508,3]
[356682455,1742943044701,-15518.4351193,0.00046519,3]
[356682456,1742943044711,-1000.0,0.00046522,2]
[356682457,1742943044720,-150.86,0.00046526,2]
[356682458,1742943044729,-3767.12080504,0.00046526,7]
[356682459,1742943044738,-17157.06535332,0.00046529,3]
[356682460,1742943046020,-10138.50525774,0.00045945,15]
[356682461,1742943046030,-4949.65126138,0.00046529,3]
[356682462,1742943046039,-15518.4351193,0.00046529,3]
[356682463,1742943046049,-22106.7166147,0.00046535,3]
[356682464,1742943046058,-15518.4351193,0.00046535,3]
[356682465,1742943046068,-655.4975,0.00046539,10]
[356682466,1742943046078,-63269.82505559,0.00046545,3]
[356682506,1742943056600,-195.4725,0.00032899,2]